fUST/lending_fUST_20240910
["ID","MTS","AMOUNT","RATE_DAILY","PERIOD"]
[337666375,1725933043192,-500.885022,0.000215,2]
[337666378,1725933043204,-500.885022,0.000215,2]
[337666380,1725933043217,-151.0,0.000215,2]
[337666382,1725933043227,-225.827776,0.000215,2]
[337666384,1725933043238,-206.179757,0.000215,2]
[337666386,1725933043248,-206.179757,0.000215,2]
[337666388,1725933043259,-1152.297148,0.000215,2]
[337666390,1725933043268,-1152.297148,0.000215,2]
[337666392,1725933043280,-151.0,0.000215,2]
[337666394,1725933043291,-151.0,0.000215,2]
[337666396,1725933043300,-223.0767,0.000215,2]
[337666398,1725933043311,-223.0767,0.000215,2]
[337666400,1725933043321,-7364.18531533,0.0002152,2]
[337666402,1725933043331,-150.01,0.00021531,2]
[337666404,1725933043341,-5358.39043241,0.00021531,2]
[337666406,1725933043352,-1000.0,0.00021537,2]
[337666408,1725933043362,-4000.0,0.00021544,2]
[337666410,1725933043372,-1000.0,0.00021546,2]
[337666412,1725933043381,-1000.0,0.00021547,2]
[337666414,1725933043392,-466.70794887,0.0002156,2]
[337666416,1725933043401,-1014.45435869,0.00021564,2]
[337666418,1725933043411,-1000.0,0.00021564,2]
[337666420,1725933043421,-1000.0,0.00021586,2]
[337666422,1725933043433,-4000.0,0.00021599,2]
[337666424,1725933043443,-150.112233,0.000216,3]
[337666426,1725933043454,-150.112233,0.000216,5]
[337666428,1725933043464,-150.227256,0.000216,2]
[337666431,1725933043476,-4902.84566992,0.00021638,2]
[337666433,1725933043486,-1000.0,0.00021644,2]
[337666435,1725933043497,-4000.0,0.00021653,2]
[337666437,1725933043506,-57687.23061055,0.00021688,2]
[337666438,1725933043517,-154.547661,0.00021688,2]
[337666440,1725933043526,-5735.9,0.00021688,2]
[337666442,1725933043536,-151.0,0.00021688,2]
[337666444,1725933043547,-151.0,0.00021688,2]
[337666446,1725933043558,-151.0,0.00021688,2]
[337666448,1725933043568,-151.0,0.00021688,2]
[337666450,1725933043578,-483.009698,0.00021688,2]
[337666453,1725933043589,-483.009698,0.00021688,2]
[337666455,1725933043599,-153.484038,0.00021688,2]
[337666462,1725933043666,-151.0,0.00021688,2]
[337666464,1725933043675,-200.425204,0.00021688,2]
[337666466,1725933043686,-200.425204,0.00021688,2]
[337666468,1725933043695,-151.0,0.00021688,2]
[337666470,1725933043705,-151.0,0.00021688,2]
[337666472,1725933043715,-151.0,0.00021688,2]
[337666474,1725933043724,-151.0,0.00021688,2]
[337666476,1725933043734,-1481.693532,0.00021688,2]
[337666478,1725933043744,-1481.693532,0.00021688,2]
[337666480,1725933043754,-272.1386,0.00021688,2]
[337666482,1725933043768,-151.0,0.00021688,2]
[337666484,1725933043778,-193.833771,0.00021688,2]
[337666486,1725933043788,-193.833771,0.00021688,2]
[337666488,1725933043798,-923.396334,0.00021688,2]
[337666490,1725933043808,-923.396334,0.00021688,2]
[337666492,1725933043818,-460.502879,0.00021688,2]
[337666494,1725933043829,-460.502879,0.00021688,2]
[337666496,1725933043841,-151.0,0.00021688,2]
[337666498,1725933043851,-353.81757,0.00021688,2]
[337666500,1725933043861,-353.81757,0.00021688,2]
[337666502,1725933043872,-151.0,0.00021688,2]
[337666504,1725933043882,-500.885022,0.00021688,2]
[337666506,1725933043892,-500.885022,0.00021688,2]
[337666508,1725933043902,-151.0,0.00021688,2]
[337666510,1725933043913,-206.179757,0.00021688,2]
[337666512,1725933043923,-206.179757,0.00021688,2]
[337666514,1725933043932,-1152.297148,0.00021688,2]
[337666516,1725933043943,-1152.297148,0.00021688,2]
[337666518,1725933043952,-151.0,0.00021688,2]
[337666520,1725933043964,-151.0,0.00021688,2]
[337666522,1725933043974,-223.0767,0.00021688,2]
[337666524,1725933043983,-223.0767,0.00021688,2]
[337666526,1725933043994,-150.112233,0.000217,3]
[337666528,1725933044004,-278.096331,0.000217,3]
[337666530,1725933044015,-150.112233,0.000217,4]
[337666532,1725933044025,-4000.0,0.00021708,2]
[337666534,1725933044036,-2216.77279457,0.00021763,2]
[337666536,1725933044046,-1715.24417176,0.00021782,2]
[337666538,1725933044057,-150.112233,0.000218,3]
[337666540,1725933044066,-150.112233,0.000218,5]
[337666542,1725933044076,-150.112233,0.000218,5]
[337666544,1725933044085,-3000.0,0.00021817,2]
[337666546,1725933044095,-150.112233,0.000219,3]
[337666548,1725933044104,-150.112233,0.000219,2]
[337666550,1725933044115,-150.0,0.000219,2]
[337666552,1725933044126,-500.0,0.000219,2]
[337666554,1725933044138,-153.4664,0.00021907,2]
[337666556,1725933044149,-151.0,0.00021907,2]
[337666558,1725933044160,-151.0,0.00021907,2]
[337666560,1725933044170,-157.003971,0.00021907,2]
[337666562,1725933044181,-483.009698,0.00021907,2]
[337666564,1725933044190,-483.009698,0.00021907,2]
[337666566,1725933044200,-151.0,0.00021907,2]
[337666568,1725933044209,-151.0,0.00021907,2]
[337666570,1725933044219,-151.0,0.00021907,2]
[337666572,1725933044229,-1481.693532,0.00021907,2]
[337666574,1725933044239,-1481.693532,0.00021907,2]
[337666576,1725933044249,-272.1386,0.00021907,2]
[337666578,1725933044260,-151.0,0.00021907,2]
[337666580,1725933044270,-193.833771,0.00021907,2]
[337666582,1725933044280,-193.833771,0.00021907,2]
[337666584,1725933044290,-923.396334,0.00021907,2]
[337666586,1725933044300,-923.396334,0.00021907,2]
[337666588,1725933044311,-460.502879,0.00021907,2]
[337666589,1725933044321,-460.502879,0.00021907,2]
[337666590,1725933044330,-151.0,0.00021907,2]
[337666591,1725933044340,-353.81757,0.00021907,2]
[337666592,1725933044349,-353.81757,0.00021907,2]
[337666593,1725933044358,-151.0,0.00021907,2]
[337666594,1725933044367,-500.885022,0.00021907,2]
[337666595,1725933044376,-500.885022,0.00021907,2]
[337666596,1725933044386,-151.0,0.00021907,2]
[337666597,1725933044395,-206.179757,0.00021907,2]
[337666598,1725933044405,-206.179757,0.00021907,2]
[337666599,1725933044414,-1152.297148,0.00021907,2]
[337666600,1725933044423,-1152.297148,0.00021907,2]
[337666601,1725933044433,-151.0,0.00021907,2]
[337666602,1725933044442,-151.0,0.00021907,2]
[337666603,1725933044452,-223.0767,0.00021907,2]
[337666604,1725933044461,-223.0767,0.00021907,2]
[337666605,1725933044470,-500.0,0.00021917,2]
[337666606,1725933044479,-515.11370547,0.00021917,2]
[337666607,1725933044488,-500.0,0.00021917,2]
[337666608,1725933044497,-503.99604972,0.00021917,2]
[337666609,1725933044506,-929.96,0.00021917,2]
[337666610,1725933044516,-500.0,0.00021917,2]
[337666611,1725933044525,-500.0,0.00021917,2]
[337666612,1725933044535,-500.0,0.00021917,2]
[337666613,1725933044544,-505.73279037,0.00021917,2]
[337666614,1725933044554,-500.0,0.00021917,2]
[337666615,1725933044564,-153.842864,0.00021917,2]
[337666616,1725933044573,-500.0,0.00021917,2]
[337666617,1725933044583,-500.0,0.00021917,2]
[337666618,1725933044592,-500.0,0.00021917,2]
[337666619,1725933044602,-500.0,0.00021917,2]
[337666620,1725933044612,-151.0,0.00021917,2]
[337666621,1725933044622,-505.74362933,0.00021917,2]
[337666622,1725933044631,-151.0,0.00021917,2]
[337666623,1725933044640,-654.73,0.00021917,2]
[337666624,1725933044649,-159.146857,0.00021917,2]
[337666625,1725933044659,-504.00187416,0.00021917,2]
[337666626,1725933044668,-500.0,0.00021917,2]
[337666628,1725933044679,-500.0,0.00021917,2]
[337666629,1725933044690,-905.59,0.00021917,2]
[337666631,1725933044702,-347.87524726,0.00021917,2]
[337666633,1725933044714,-502.5173526,0.00021917,2]
[337666635,1725933044724,-500.0,0.00021917,2]
[337666637,1725933044735,-170.81479821,0.00021917,2]
[337666639,1725933044745,-500.0,0.00021917,2]
[337666641,1725933044756,-500.0,0.00021917,2]
[337666643,1725933044766,-500.0,0.00021917,2]
[337666646,1725933044776,-500.0,0.00021917,2]
[337666648,1725933044787,-500.0,0.00021917,2]
[337666650,1725933044797,-596.27,0.00021917,2]
[337666652,1725933044807,-449.09571719,0.00021917,2]
[337666654,1725933044818,-500.0,0.00021917,2]
[337666656,1725933044828,-1546.71,0.00021917,2]
[337666658,1725933044838,-151.0,0.00021917,2]
[337666660,1725933044848,-500.0,0.00021917,2]
[337666662,1725933044858,-151.0,0.00021917,2]
[337666664,1725933044868,-151.0,0.00021917,2]
[337666666,1725933044879,-151.0,0.00021917,2]
[337666668,1725933044889,-502.41457542,0.00021917,2]
[337666670,1725933044899,-151.0,0.00021917,2]
[337666672,1725933044908,-503.32013149,0.00021917,2]
[337666674,1725933044918,-151.0,0.00021917,2]
[337666676,1725933044928,-151.0,0.00021917,2]
[337666678,1725933044938,-151.0,0.00021917,2]
[337666680,1725933044948,-214.760092,0.00021917,2]
[337666682,1725933044960,-500.0,0.00021917,2]
[337666684,1725933044971,-512.95514938,0.00021917,2]
[337666686,1725933044980,-505.14939571,0.00021917,2]
[337666689,1725933044992,-503.58364482,0.00021917,2]
[337666691,1725933045004,-200.29834476,0.00021917,2]
[337666693,1725933045016,-515.63751268,0.00021917,2]
[337666695,1725933045027,-899.77,0.00021917,2]
[337666697,1725933045038,-500.0,0.00021917,2]
[337666700,1725933045048,-503.15696207,0.00021917,2]
[337666702,1725933045057,-500.0,0.00021917,2]
[337666704,1725933045067,-500.0,0.00021917,2]
[337666706,1725933045078,-500.0,0.00021917,2]
[337666708,1725933045089,-897.97,0.00021917,2]
[337666710,1725933045100,-897.97,0.00021917,2]
[337666712,1725933045111,-897.97,0.00021917,2]
[337666714,1725933045121,-897.97,0.00021917,2]
[337666716,1725933045132,-897.97,0.00021917,2]
[337666718,1725933045142,-897.97,0.00021917,2]
[337666721,1725933045151,-500.0,0.00021917,2]
[337666722,1725933045161,-897.97,0.00021917,2]
[337666725,1725933045173,-897.97,0.00021917,2]
[337666727,1725933045182,-500.60310786,0.00021917,2]
[337666729,1725933045192,-897.97,0.00021917,2]
[337666731,1725933045201,-616.07,0.00021917,2]
[337666733,1725933045211,-897.97,0.00021917,2]
[337666735,1725933045220,-897.97,0.00021917,2]
[337666737,1725933045230,-897.97,0.00021917,2]
[337666739,1725933045240,-897.97,0.00021917,2]
[337666741,1725933045250,-897.97,0.00021917,2]
[337666743,1725933045260,-897.97,0.00021917,2]
[337666745,1725933045270,-897.97,0.00021917,2]
[337666747,1725933045280,-897.97,0.00021917,2]
[337666749,1725933045291,-897.97,0.00021917,2]
[337666751,1725933045301,-897.97,0.00021917,2]
[337666753,1725933045311,-897.97,0.00021917,2]
[337666755,1725933045320,-897.97,0.00021917,2]
[337666757,1725933045331,-897.97,0.00021917,2]
[337666759,1725933045342,-500.0,0.00021917,2]
[337666761,1725933045352,-897.97,0.00021917,2]
[337666764,1725933045363,-898.0565561,0.00021917,2]
[337666766,1725933045372,-500.0,0.00021917,2]
[337666768,1725933045382,-500.0,0.00021917,2]
[337666770,1725933045392,-500.0,0.00021917,2]
[337666772,1725933045401,-500.0,0.00021917,2]
[337666774,1725933045411,-500.0,0.00021917,2]
[337666776,1725933045421,-500.0,0.00021917,2]
[337666778,1725933045431,-504.88865763,0.00021917,2]
[337666780,1725933045440,-503.10018655,0.00021917,2]
[337666782,1725933045450,-500.0,0.00021917,2]
[337666784,1725933045460,-718.21,0.00021917,2]
[337666786,1725933045470,-500.0,0.00021917,2]
[337666788,1725933045479,-500.0,0.00021917,2]
[337666790,1725933045490,-833.33,0.00021917,2]
[337666792,1725933045499,-500.0,0.00021917,2]
[337666794,1725933045510,-515.58471798,0.00021917,2]
[337666796,1725933045520,-500.0,0.00021917,2]
[337666798,1725933045530,-500.0,0.00021917,2]
[337666800,1725933045540,-500.0,0.00021917,2]
[337666802,1725933045550,-500.0,0.00021917,2]
[337666804,1725933045560,-500.0,0.00021917,2]
[337666806,1725933045570,-500.0,0.00021917,2]
[337666808,1725933045579,-500.0,0.00021917,2]
[337666810,1725933045588,-1662.15,0.00021917,2]
[337666812,1725933045599,-500.0,0.00021917,2]
[337666814,1725933045609,-500.0,0.00021917,2]
[337666816,1725933045620,-500.0,0.00021917,2]
[337666818,1725933045631,-524.03754686,0.00021917,2]
[337666820,1725933045642,-923.16,0.00021917,2]
[337666822,1725933045652,-503.06603787,0.00021917,2]
[337666824,1725933045661,-859.11,0.00021917,2]
[337666826,1725933045671,-500.0,0.00021917,2]
[337666828,1725933045681,-500.0,0.00021917,2]
[337666830,1725933045691,-500.0,0.00021917,2]
[337666832,1725933045701,-503.03441153,0.00021917,2]
[337666834,1725933045711,-500.0,0.00021917,2]
[337666836,1725933045720,-500.0,0.00021917,2]
[337666838,1725933045730,-500.0,0.00021917,2]
[337666840,1725933045739,-500.0,0.00021917,2]
[337666842,1725933045749,-505.40308729,0.00021917,2]
[337666844,1725933045760,-502.09432493,0.00021917,2]
[337666846,1725933045770,-503.30310232,0.00021917,2]
[337666848,1725933045780,-431.33529057,0.00021917,2]
[337666850,1725933045790,-500.0,0.00021917,2]
[337666852,1725933045800,-251.32109623,0.00021917,2]
[337666854,1725933045811,-503.31955903,0.00021917,2]
[337666856,1725933045821,-500.0,0.00021917,2]
[337666858,1725933045832,-500.0,0.00021917,2]
[337666860,1725933045842,-544.93,0.00021917,2]
[337666863,1725933045854,-502.00476483,0.00021917,2]
[337666865,1725933045865,-500.0,0.00021917,2]
[337666867,1725933045875,-500.0,0.00021917,2]
[337666869,1725933045884,-500.0,0.00021917,2]
[337666871,1725933045895,-500.0,0.00021917,2]
[337666873,1725933045905,-503.19555402,0.00021917,2]
[337666875,1725933045915,-503.35471909,0.00021917,2]
[337666877,1725933045924,-500.0,0.00021917,2]
[337666879,1725933045934,-307.55917204,0.00021917,2]
[337666881,1725933045947,-500.93638965,0.00021917,2]
[337666883,1725933045960,-2130.97,0.00021917,2]
[337666885,1725933045970,-501.90155463,0.00021917,2]
[337666887,1725933045980,-595.65,0.00021917,2]
[337666889,1725933045990,-501.36403863,0.00021917,2]
[337666891,1725933046000,-500.0,0.00021917,2]
[337666893,1725933046010,-500.0,0.00021917,2]
[337666895,1725933046020,-500.0,0.00021917,2]
[337666897,1725933046031,-503.92760834,0.00021917,2]
[337666899,1725933046042,-500.0,0.00021917,2]
[337666901,1725933046052,-500.0,0.00021917,2]
[337666903,1725933046061,-1180.7,0.00021917,2]
[337666905,1725933046071,-483.009698,0.00021917,2]
[337666907,1725933046081,-500.0,0.00021917,2]
[337666909,1725933046090,-483.009698,0.00021917,2]
[337666911,1725933046100,-483.009698,0.00021917,2]
[337666913,1725933046110,-483.009698,0.00021917,2]
[337666915,1725933046120,-483.009698,0.00021917,2]
[337666917,1725933046130,-483.009698,0.00021917,2]
[337666919,1725933046140,-483.009698,0.00021917,2]
[337666921,1725933046150,-483.009698,0.00021917,2]
[337666923,1725933046160,-483.009698,0.00021917,2]
[337666925,1725933046171,-483.009698,0.00021917,2]
[337666927,1725933046183,-780.43,0.00021917,2]
[337666929,1725933046193,-483.009698,0.00021917,2]
[337666931,1725933046203,-483.009698,0.00021917,2]
[337666933,1725933046214,-483.009698,0.00021917,2]
[337666935,1725933046225,-483.009692,0.00021917,2]
[337666937,1725933046235,-500.0,0.00021917,2]
[337666939,1725933046247,-502.15238451,0.00021917,2]
[337666942,1725933046259,-500.0,0.00021917,2]
[337666944,1725933046269,-502.68001524,0.00021917,2]
[337666946,1725933046280,-662.88,0.00021917,2]
[337666948,1725933046290,-500.0,0.00021917,2]
[337666950,1725933046301,-500.0,0.00021917,2]
[337666952,1725933046311,-505.72606041,0.00021917,2]
[337666954,1725933046322,-530.83873268,0.00021917,2]
[337666956,1725933046332,-500.0,0.00021917,2]
[337666958,1725933046342,-504.36644982,0.00021917,2]
[337666960,1725933046352,-635.97728414,0.00021917,2]
[337666962,1725933046364,-500.0,0.00021917,2]
[337666964,1725933046374,-502.5778232,0.00021917,2]
[337666966,1725933046385,-500.0,0.00021917,2]
[337666968,1725933046396,-510.29384101,0.00021917,2]
[337666970,1725933046406,-500.0,0.00021917,2]
[337666972,1725933046416,-1331.44,0.00021917,2]
[337666974,1725933046426,-500.0,0.00021917,2]
[337666976,1725933046435,-500.0,0.00021917,2]
[337666978,1725933046447,-500.0,0.00021917,2]
[337666981,1725933046457,-151.0,0.00021917,2]
[337666984,1725933046468,-151.0,0.00021917,2]
[337666987,1725933046477,-151.0,0.00021917,2]
[337666989,1725933046488,-502.99275609,0.00021917,2]
[337666991,1725933046499,-316.87975053,0.00021917,2]
[337666993,1725933046510,-506.6441311,0.00021917,2]
[337666996,1725933046522,-500.0,0.00021917,2]
[337666998,1725933046533,-500.0,0.00021917,2]
[337667000,1725933046544,-500.0,0.00021917,2]
[337667002,1725933046557,-523.91519448,0.00021917,2]
[337667004,1725933046567,-501.70109812,0.00021917,2]
[337667006,1725933046577,-542.91584567,0.00021917,2]
[337667008,1725933046588,-1427.61,0.00021917,2]
[337667010,1725933046599,-500.0,0.00021917,2]
[337667013,1725933046610,-500.0,0.00021917,2]
[337667015,1725933046621,-599.67094833,0.00021917,2]
[337667017,1725933046632,-506.8767011,0.00021917,2]
[337667019,1725933046644,-500.0,0.00021917,2]
[337667021,1725933046655,-500.0,0.00021917,2]
[337667023,1725933046666,-502.43479788,0.00021917,2]
[337667025,1725933046677,-200.425204,0.00021917,2]
[337667027,1725933046688,-200.425204,0.00021917,2]
[337667029,1725933046698,-200.425204,0.00021917,2]
[337667032,1725933046708,-500.0,0.00021917,2]
[337667034,1725933046718,-200.425204,0.00021917,2]
[337667036,1725933046729,-200.425204,0.00021917,2]
[337667038,1725933046739,-200.425211,0.00021917,2]
[337667040,1725933046750,-151.0,0.00021917,2]
[337667042,1725933046759,-151.0,0.00021917,2]
[337667044,1725933046770,-153.219926,0.00021917,2]
[337667046,1725933046780,-506.92768438,0.00021917,2]
[337667048,1725933046790,-504.67577351,0.00021917,2]
[337667050,1725933046800,-568.18,0.00021917,2]
[337667052,1725933046810,-568.18,0.00021917,2]
[337667054,1725933046820,-568.18,0.00021917,2]
[337667056,1725933046830,-568.18,0.00021917,2]
[337667058,1725933046840,-568.18,0.00021917,2]
[337667060,1725933046850,-568.18,0.00021917,2]
[337667062,1725933046860,-568.18,0.00021917,2]
[337667064,1725933046871,-568.18,0.00021917,2]
[337667066,1725933046880,-568.18,0.00021917,2]
[337667068,1725933046891,-568.18,0.00021917,2]
[337667070,1725933046901,-568.18,0.00021917,2]
[337667072,1725933046911,-568.18,0.00021917,2]
[337667074,1725933046921,-568.18,0.00021917,2]
[337667076,1725933046932,-500.0,0.00021917,2]
[337667078,1725933046942,-568.18,0.00021917,2]
[337667081,1725933046954,-568.18,0.00021917,2]
[337667083,1725933046965,-568.18,0.00021917,2]
[337667085,1725933046976,-568.18,0.00021917,2]
[337667087,1725933046986,-503.92068909,0.00021917,2]
[337667098,1725933047143,-568.18,0.00021917,2]
[337667100,1725933047184,-568.18,0.00021917,2]
[337667102,1725933047195,-568.18,0.00021917,2]
[337667105,1725933047206,-568.18,0.00021917,2]
[337667107,1725933047216,-568.18,0.00021917,2]
[337667109,1725933047227,-568.18,0.00021917,2]
[337667110,1725933047237,-568.31452382,0.00021917,2]
[337667112,1725933047246,-500.0,0.00021917,2]
[337667114,1725933047255,-500.0,0.00021917,2]
[337667116,1725933047266,-510.14024662,0.00021917,2]
[337667119,1725933047276,-500.0,0.00021917,2]
[337667121,1725933047286,-500.0,0.00021917,2]
[337667123,1725933047295,-797.08,0.00021917,2]
[337667125,1725933047305,-500.0,0.00021917,2]
[337667127,1725933047314,-500.0,0.00021917,2]
[337667129,1725933047324,-500.0,0.00021917,2]
[337667131,1725933047334,-500.0,0.00021917,2]
[337667133,1725933047343,-502.05131347,0.00021917,2]
[337667135,1725933047353,-502.90350409,0.00021917,2]
[337667137,1725933047362,-504.48374355,0.00021917,2]
[337667139,1725933047372,-578.57,0.00021917,2]
[337667141,1725933047382,-500.0,0.00021917,2]
[337667143,1725933047391,-500.0,0.00021917,2]
[337667145,1725933047401,-500.0,0.00021917,2]
[337667147,1725933047410,-500.0,0.00021917,2]
[337667148,1725933047420,-500.0,0.00021917,2]
[337667151,1725933047429,-502.20021747,0.00021917,2]
[337667153,1725933047439,-503.26235754,0.00021917,2]
[337667154,1725933047448,-1077.32,0.00021917,2]
[337667156,1725933047458,-500.0,0.00021917,2]
[337667158,1725933047468,-500.0,0.00021917,2]
[337667160,1725933047480,-500.0,0.00021917,2]
[337667162,1725933047490,-510.21552978,0.00021917,2]
[337667164,1725933047500,-500.0,0.00021917,2]
[337667166,1725933047510,-500.0,0.00021917,2]
[337667169,1725933047523,-500.0,0.00021917,2]
[337667171,1725933047533,-500.0,0.00021917,2]
[337667173,1725933047544,-542.14,0.00021917,2]
[337667175,1725933047555,-502.92608811,0.00021917,2]
[337667177,1725933047565,-500.83040021,0.00021917,2]
[337667179,1725933047575,-500.0,0.00021917,2]
[337667181,1725933047584,-500.0,0.00021917,2]
[337667183,1725933047595,-500.0,0.00021917,2]
[337667185,1725933047606,-504.96329044,0.00021917,2]
[337667187,1725933047617,-503.2918749,0.00021917,2]
[337667190,1725933047628,-506.21194666,0.00021917,2]
[337667191,1725933047638,-500.80439351,0.00021917,2]
[337667194,1725933047648,-500.0,0.00021917,2]
[337667196,1725933047658,-500.98855835,0.00021917,2]
[337667198,1725933047667,-500.0,0.00021917,2]
[337667199,1725933047677,-504.42133868,0.00021917,2]
[337667202,1725933047686,-500.0,0.00021917,2]
[337667203,1725933047695,-502.50629704,0.00021917,2]
[337667205,1725933047704,-540.85574823,0.00021917,2]
[337667208,1725933047714,-500.37811525,0.00021917,2]
[337667210,1725933047723,-508.36,0.00021917,2]
[337667212,1725933047733,-500.0,0.00021917,2]
[337667214,1725933047742,-504.4577273,0.00021917,2]
[337667216,1725933047751,-500.0,0.00021917,2]
[337667218,1725933047760,-505.77089559,0.00021917,2]
[337667220,1725933047770,-1452.33,0.00021917,2]
[337667222,1725933047780,-500.0,0.00021917,2]
[337667224,1725933047790,-503.89402504,0.00021917,2]
[337667226,1725933047799,-500.0,0.00021917,2]
[337667228,1725933047808,-509.65392536,0.00021917,2]
[337667230,1725933047818,-956.11,0.00021917,2]
[337667232,1725933047827,-509.34,0.00021917,2]
[337667234,1725933047837,-500.0,0.00021917,2]
[337667236,1725933047846,-533.61,0.00021917,2]
[337667238,1725933047855,-500.0,0.00021917,2]
[337667240,1725933047864,-500.0,0.00021917,2]
[337667242,1725933047874,-503.57061304,0.00021917,2]
[337667244,1725933047884,-527.07,0.00021917,2]
[337667246,1725933047893,-500.0,0.00021917,2]
[337667248,1725933047903,-501.86802525,0.00021917,2]
[337667250,1725933047912,-506.46123002,0.00021917,2]
[337667252,1725933047922,-504.72525001,0.00021917,2]
[337667254,1725933047935,-500.0,0.00021917,2]
[337667256,1725933047946,-500.0,0.00021917,2]
[337667258,1725933047955,-500.0,0.00021917,2]
[337667261,1725933047966,-500.0,0.00021917,2]
[337667263,1725933047978,-183.84844397,0.00021917,2]
[337667265,1725933047990,-724.74,0.00021917,2]
[337667267,1725933048002,-500.0,0.00021917,2]
[337667270,1725933048014,-500.0,0.00021917,2]
[337667272,1725933048024,-500.0,0.00021917,2]
[337667274,1725933048035,-500.0,0.00021917,2]
[337667276,1725933048044,-500.0,0.00021917,2]
[337667278,1725933048054,-500.0,0.00021917,2]
[337667280,1725933048066,-500.0,0.00021917,2]
[337667282,1725933048076,-500.0,0.00021917,2]
[337667284,1725933048086,-500.0,0.00021917,2]
[337667286,1725933048096,-500.0,0.00021917,2]
[337667288,1725933048105,-500.0,0.00021917,2]
[337667290,1725933048114,-500.0,0.00021917,2]
[337667292,1725933048124,-500.0,0.00021917,2]
[337667294,1725933048134,-500.0,0.00021917,2]
[337667296,1725933048144,-500.0,0.00021917,2]
[337667298,1725933048154,-527.81934227,0.00021917,2]
[337667300,1725933048163,-500.0,0.00021917,2]
[337667302,1725933048173,-502.9350236,0.00021917,2]
[337667304,1725933048183,-500.0,0.00021917,2]
[337667306,1725933048192,-500.0,0.00021917,2]
[337667309,1725933048202,-626.06,0.00021917,2]
[337667311,1725933048211,-1021.15,0.00021917,2]
[337667313,1725933048221,-500.0,0.00021917,2]
[337667315,1725933048231,-500.0,0.00021917,2]
[337667317,1725933048240,-502.58852765,0.00021917,2]
[337667319,1725933048250,-501.89407592,0.00021917,2]
[337667321,1725933048260,-500.0,0.00021917,2]
[337667323,1725933048270,-932.79,0.00021917,2]
[337667325,1725933048279,-500.0,0.00021917,2]
[337667327,1725933048289,-500.0,0.00021917,2]
[337667329,1725933048298,-557.29,0.00021917,2]
[337667331,1725933048308,-500.0,0.00021917,2]
[337667333,1725933048318,-935.0,0.00021917,2]
[337667335,1725933048329,-500.0,0.00021917,2]
[337667337,1725933048338,-500.0,0.00021917,2]
[337667339,1725933048348,-501.58509281,0.00021917,2]
[337667341,1725933048358,-500.0,0.00021917,2]
[337667343,1725933048368,-500.0,0.00021917,2]
[337667345,1725933048378,-500.0,0.00021917,2]
[337667347,1725933048389,-503.09004834,0.00021917,2]
[337667349,1725933048399,-500.0,0.00021917,2]
[337667351,1725933048409,-1162.47,0.00021917,2]
[337667353,1725933048419,-1687.6,0.00021917,2]
[337667356,1725933048429,-1067.36,0.00021917,2]
[337667358,1725933048439,-501.30145709,0.00021917,2]
[337667360,1725933048449,-503.44565539,0.00021917,2]
[337667362,1725933048459,-500.0,0.00021917,2]
[337667364,1725933048469,-500.0,0.00021917,2]
[337667366,1725933048479,-503.78826697,0.00021917,2]
[337667368,1725933048489,-511.45152402,0.00021917,2]
[337667370,1725933048499,-500.0,0.00021917,2]